[Event "Campeonato de España Universitario Relámpago"]
[Site "Zaragoza, Spain"]
[Date "2024.04.24"]
[Round "1.1"]
[White "Aguilar Martin, Jorge"]
[Black "Lianes Garcia, Marcos"]
[Result "0-1"]
[TimeControl "3 min + 2 sg"]
[WhiteFideId "24522333"]
[BlackFideId "32060777"]
[WhiteElo "1963"]
[BlackElo "2382"]

1. c4 {[%clk 00:03:02]} {[%emt 00:00:02]} g6 {[%clk 00:03:04]} 2. Nc3 {[%clk
00:03:02]} {[%emt 00:00:03]} Bg7 {[%clk 00:03:05]} 3. e4 {[%clk 00:03:03]} c5
{[%clk 00:03:03]} {[%emt 00:00:04]} 4. Nge2 {[%clk 00:03:03]} {[%emt 00:00:03]}
Nc6 {[%clk 00:03:03]} {[%emt 00:00:02]} 5. g3 {[%clk 00:03:04]} d6 {[%clk
00:02:53]} {[%emt 00:00:13]} 6. h3 {[%clk 00:03:04]} {[%emt 00:00:01]} e5
{[%clk 00:02:50]} {[%emt 00:00:05]} 7. Bg2 {[%clk 00:03:05]} {[%emt 00:00:01]}
Nge7 {[%clk 00:02:51]} {[%emt 00:00:01]} 8. O-O {[%clk 00:03:05]} {[%emt
00:00:02]} O-O {[%clk 00:02:51]} {[%emt 00:00:03]} 9. d3 {[%clk 00:03:06]} Nd4
{[%clk 00:02:50]} {[%emt 00:00:03]} 10. Nxd4 {[%clk 00:03:05]} {[%emt
00:00:02]} cxd4 {[%clk 00:02:51]} {[%emt 00:00:02]} 11. Ne2 {[%clk 00:03:06]}
Rb8 {[%clk 00:02:48]} {[%emt 00:00:05]} 12. a4 {[%clk 00:03:06]} {[%emt
00:00:02]} f5 {[%clk 00:02:39]} {[%emt 00:00:11]} 13. exf5 {[%clk 00:02:23]}
{[%emt 00:00:44]} Nxf5 {[%clk 00:02:40]} {[%emt 00:00:01]} 14. Rb1 {[%clk
00:02:15]} {[%emt 00:00:10]} Be6 {[%clk 00:02:38]} {[%emt 00:00:05]} 15. b4
{[%clk 00:02:13]} {[%emt 00:00:04]} b6 {[%clk 00:02:27]} {[%emt 00:00:13]} 16.
Ba3 {[%clk 00:02:03]} {[%emt 00:00:11]} Qd7 {[%clk 00:02:20]} {[%emt 00:00:10]}
17. Kh2 {[%clk 00:01:56]} {[%emt 00:00:09]} Rfc8 {[%clk 00:02:13]} {[%emt
00:00:09]} 18. a5 {[%clk 00:01:35]} {[%emt 00:00:23]} Bf8 {[%clk 00:02:06]}
{[%emt 00:00:09]} 19. axb6 {[%clk 00:01:24]} {[%emt 00:00:13]} axb6 {[%clk
00:02:07]} {[%emt 00:00:01]} 20. b5 {[%clk 00:01:07]} {[%emt 00:00:19]} d5
{[%clk 00:02:04]} {[%emt 00:00:05]} 21. Bxf8 {[%clk 00:01:07]} {[%emt
00:00:01]} Kxf8 {[%clk 00:02:01]} {[%emt 00:00:06]} 22. cxd5 {[%clk 00:01:06]}
{[%emt 00:00:03]} Bxd5 {[%clk 00:02:02]} {[%emt 00:00:01]} 23. Qd2 {[%clk
00:01:03]} {[%emt 00:00:05]} Bxg2 {[%clk 00:01:54]} {[%emt 00:00:09]} 24. Kxg2
{[%clk 00:01:04]} Rc5 {[%clk 00:01:54]} {[%emt 00:00:03]} 25. Rfc1 {[%clk
00:01:00]} {[%emt 00:00:06]} Rbc8 {[%clk 00:01:55]} {[%emt 00:00:01]} 26. Qg5
{[%clk 00:00:51]} {[%emt 00:00:11]} Kg7 {[%clk 00:01:45]} {[%emt 00:00:12]} 27.
Qd2 {[%clk 00:00:34]} {[%emt 00:00:18]} R8c7 {[%clk 00:01:34]} {[%emt
00:00:14]} 28. Qd1 {[%clk 00:00:19]} {[%emt 00:00:18]} Qd5+ {[%clk 00:01:25]}
{[%emt 00:00:11]} 29. Kg1 {[%clk 00:00:20]} Qf3 {[%clk 00:01:22]} {[%emt
00:00:05]} 30. Rxc5 {[%clk 00:00:15]} {[%emt 00:00:07]} Rxc5 {[%clk 00:01:22]}
{[%emt 00:00:02]} 31. Ra1 {[%clk 00:00:09]} {[%emt 00:00:08]} Rc7 {[%clk
00:01:05]} {[%emt 00:00:19]} 32. Qd2 {[%clk 00:00:09]} {[%emt 00:00:02]} Rf7
{[%clk 00:00:58]} {[%emt 00:00:09]} 33. Nc1 {[%clk 00:00:08]} {[%emt 00:00:02]}
Nxg3 {[%clk 00:00:55]} {[%emt 00:00:04]} 34. fxg3 {[%clk 00:00:07]} {[%emt
00:00:03]} Qf1+ {[%clk 00:00:56]} 0-1

[Event "Campeonato de España Universitario Relámpago"]
[Site "Zaragoza, Spain"]
[Date "2024.04.24"]
[Round "1.2"]
[White "Lopez Mulet, Inigo"]
[Black "Sanleon Pravisano, Nieves"]
[Result "1-0"]
[TimeControl "3 min + 2 sg"]
[WhiteFideId "22235620"]
[BlackFideId "32088590"]
[WhiteElo "2347"]
[BlackElo "1947"]

1. Nf3 {[%clk 00:03:01]} {[%emt 00:00:02]} Nf6 {[%clk 00:03:03]} {[%emt
00:00:02]} 2. d4 {[%clk 00:03:01]} {[%emt 00:00:03]} d5 {[%clk 00:03:03]} 3. e3
{[%clk 00:03:01]} {[%emt 00:00:02]} Bf5 {[%clk 00:02:59]} {[%emt 00:00:06]} 4.
Nbd2 {[%clk 00:02:31]} {[%emt 00:00:32]} e6 {[%clk 00:02:59]} {[%emt 00:00:02]}
5. b3 {[%clk 00:02:31]} {[%emt 00:00:02]} h6 {[%clk 00:02:59]} {[%emt
00:00:02]} 6. Bb2 {[%clk 00:02:32]} {[%emt 00:00:02]} Bd6 {[%clk 00:02:57]}
{[%emt 00:00:04]} 7. Bd3 {[%clk 00:02:16]} {[%emt 00:00:18]} O-O {[%clk
00:02:34]} {[%emt 00:00:25]} 8. Ne5 {[%clk 00:01:56]} {[%emt 00:00:22]} c5
{[%clk 00:01:58]} {[%emt 00:00:37]} 9. Bxf5 {[%clk 00:01:45]} {[%emt 00:00:13]}
exf5 {[%clk 00:01:58]} {[%emt 00:00:02]} 10. Qf3 {[%clk 00:01:09]} {[%emt
00:00:38]} Qc8 {[%clk 00:01:39]} {[%emt 00:00:22]} 11. dxc5 {[%clk 00:00:29]}
{[%emt 00:00:43]} Bxc5 {[%clk 00:01:34]} {[%emt 00:00:07]} 12. Rg1 {[%clk
00:00:23]} {[%emt 00:00:07]} Bb4 {[%clk 00:01:25]} {[%emt 00:00:11]} 13. O-O-O
{[%clk 00:00:23]} {[%emt 00:00:02]} Bc3 {[%clk 00:01:07]} {[%emt 00:00:20]} 14.
g4 {[%clk 00:00:22]} {[%emt 00:00:04]} fxg4 {[%clk 00:00:32]} {[%emt 00:00:37]}
15. Nxg4 {[%clk 00:00:22]} {[%emt 00:00:02]} Nxg4 {[%clk 00:00:29]} {[%emt
00:00:05]} 16. Rxg4 {[%clk 00:00:23]} {[%emt 00:00:01]} Bxb2+ {[%clk 00:00:18]}
{[%emt 00:00:12]} 17. Kxb2 {[%clk 00:00:24]} Qe6 {[%clk 00:00:14]} {[%emt
00:00:06]} 18. Qf4 {[%clk 00:00:20]} {[%emt 00:00:07]} Nc6 {[%clk 00:00:11]}
{[%emt 00:00:05]} 19. Nf3 {[%clk 00:00:20]} {[%emt 00:00:02]} Rac8 {[%clk
00:00:04]} {[%emt 00:00:09]} 20. Rdg1 {[%clk 00:00:21]} {[%emt 00:00:01]} g6
{[%clk 00:00:03]} {[%emt 00:00:03]} 21. c3 {[%clk 00:00:11]} {[%emt 00:00:12]}
Ne7 {[%clk 00:00:03]} {[%emt 00:00:03]} 22. Qxh6 {[%clk 00:00:10]} {[%emt
00:00:03]} Rc6 {[%clk 00:00:03]} {[%emt 00:00:02]} 23. Nd4 {[%clk 00:00:10]}
{[%emt 00:00:01]} Qf6 {[%clk 00:00:03]} {[%emt 00:00:02]} 24. Rf4 {[%clk
00:00:08]} {[%emt 00:00:05]} Qg7 {[%clk 00:00:05]} 25. Qxg7+ {[%clk 00:00:08]}
{[%emt 00:00:02]} Kxg7 {[%clk 00:00:06]} 26. Nxc6 {[%clk 00:00:09]} bxc6 {[%clk
00:00:07]} 27. Ra4 {[%clk 00:00:10]} Nf5 {[%clk 00:00:07]} {[%emt 00:00:02]} 28.
Rxa7 {[%clk 00:00:11]} {[%emt 00:00:01]} Rh8 {[%clk 00:00:06]} {[%emt
00:00:03]} 29. Rg2 {[%clk 00:00:10]} {[%emt 00:00:03]} Nh4 {[%clk 00:00:07]} 30.
Rg4 {[%clk 00:00:11]} {[%emt 00:00:01]} 1-0

[Event "Campeonato de España Universitario Relámpago"]
[Site "Zaragoza, Spain"]
[Date "2024.04.24"]
[Round "1.3"]
[White "Aguilar Martin, Alberto"]
[Black "Luque Saiz, Andres"]
[Result "0-1"]
[TimeControl "3 min + 2 sg"]
[WhiteFideId "32097492"]
[BlackFideId "24510793"]
[WhiteElo "1943"]
[BlackElo "2346"]

1. e4 {[%clk 00:03:02]} {[%emt 03:08:21]} c5 {[%clk 00:02:56]} {[%emt
00:00:09]} 2. Nf3 {[%clk 00:03:03]} a6 {[%clk 00:02:58]} 3. d4 {[%clk
00:03:03]} {[%emt 00:00:03]} cxd4 {[%clk 00:02:57]} {[%emt 00:00:01]} 4. Nxd4
{[%clk 00:03:04]} e5 {[%clk 00:02:53]} {[%emt 00:00:06]} 5. Nf3 {[%clk
00:03:03]} {[%emt 00:00:04]} Nc6 {[%clk 00:02:51]} {[%emt 00:00:03]} 6. Nc3
{[%clk 00:03:03]} Bc5 {[%clk 00:02:48]} {[%emt 00:00:05]} 7. Be2 {[%clk
00:03:04]} {[%emt 00:00:02]} Nf6 {[%clk 00:02:49]} {[%emt 00:00:02]} 8. O-O
{[%clk 00:03:04]} O-O {[%clk 00:02:47]} {[%emt 00:00:04]} 9. Bg5 {[%clk
00:02:57]} {[%emt 00:00:09]} h6 {[%clk 00:02:48]} 10. Bxf6 {[%clk 00:02:58]}
Qxf6 {[%clk 00:02:49]} {[%emt 00:00:01]} 11. Nd5 {[%clk 00:02:59]} Qd8 {[%clk
00:02:50]} {[%emt 00:00:02]} 12. c3 {[%clk 00:02:53]} {[%emt 00:00:08]} d6
{[%clk 00:02:45]} {[%emt 00:00:07]} 13. Qb3 {[%clk 00:02:33]} {[%emt 00:00:22]}
Kh8 {[%clk 00:02:43]} {[%emt 00:00:04]} 14. Rad1 {[%clk 00:02:30]} {[%emt
00:00:05]} Rb8 {[%clk 00:02:24]} {[%emt 00:00:21]} 15. Bd3 {[%clk 00:02:22]}
{[%emt 00:00:10]} Be6 {[%clk 00:02:22]} {[%emt 00:00:04]} 16. Nd2 {[%clk
00:02:08]} {[%emt 00:00:16]} Ne7 {[%clk 00:02:19]} {[%emt 00:00:05]} 17. c4
{[%clk 00:01:57]} {[%emt 00:00:12]} Nc6 {[%clk 00:02:06]} {[%emt 00:00:15]} 18.
Nf3 {[%clk 00:01:52]} {[%emt 00:00:07]} Bg4 {[%clk 00:02:02]} {[%emt 00:00:06]}
19. Be2 {[%clk 00:01:48]} {[%emt 00:00:06]} f5 {[%clk 00:01:38]} {[%emt
00:00:26]} 20. h3 {[%clk 00:01:33]} {[%emt 00:00:18]} Bxf3 {[%clk 00:01:10]}
{[%emt 00:00:30]} 21. Bxf3 {[%clk 00:01:34]} Nd4 {[%clk 00:01:09]} {[%emt
00:00:03]} 22. Qd3 {[%clk 00:01:35]} {[%emt 00:00:01]} Qg5 {[%clk 00:00:53]}
{[%emt 00:00:17]} 23. b4 {[%clk 00:01:26]} {[%emt 00:00:11]} Ba7 {[%clk
00:00:54]} {[%emt 00:00:01]} 24. Kh1 {[%clk 00:01:27]} Nxf3 {[%clk 00:00:43]}
{[%emt 00:00:13]} 25. Qxf3 {[%clk 00:01:27]} {[%emt 00:00:01]} fxe4 {[%clk
00:00:44]} {[%emt 00:00:01]} 26. Qxe4 {[%clk 00:01:26]} {[%emt 00:00:04]} Bxf2
{[%clk 00:00:41]} {[%emt 00:00:04]} 27. Rd3 {[%clk 00:01:27]} {[%emt 00:00:01]}
Bd4 {[%clk 00:00:34]} {[%emt 00:00:09]} 28. Rdf3 {[%clk 00:01:27]} {[%emt
00:00:02]} Rxf3 {[%clk 00:00:22]} {[%emt 00:00:14]} 29. Qxf3 {[%clk 00:01:28]}
Qg6 {[%clk 00:00:16]} {[%emt 00:00:08]} 30. Ne7 {[%clk 00:01:23]} {[%emt
00:00:08]} Qe6 {[%clk 00:00:15]} {[%emt 00:00:02]} 31. Nd5 {[%clk 00:01:19]}
{[%emt 00:00:06]} Kg8 {[%clk 00:00:13]} {[%emt 00:00:04]} 32. a4 {[%clk
00:01:05]} {[%emt 00:00:17]} Rc8 {[%clk 00:00:11]} {[%emt 00:00:04]} 33. Qd3
{[%clk 00:01:02]} {[%emt 00:00:04]} Rf8 {[%clk 00:00:12]} {[%emt 00:00:01]} 34.
Rxf8+ {[%clk 00:01:02]} {[%emt 00:00:01]} Kxf8 {[%clk 00:00:13]} 35. Qf3+
{[%clk 00:00:58]} {[%emt 00:00:07]} Qf7 {[%clk 00:00:14]} {[%emt 00:00:01]} 36.
Qxf7+ {[%clk 00:00:34]} {[%emt 00:00:26]} Kxf7 {[%clk 00:00:15]} {[%emt
00:00:01]} 37. g4 {[%clk 00:00:36]} Ke6 {[%clk 00:00:14]} {[%emt 00:00:03]} 38.
Kg2 {[%clk 00:00:37]} e4 {[%clk 00:00:14]} {[%emt 00:00:02]} 39. Kg3 {[%clk
00:00:35]} {[%emt 00:00:03]} Ke5 {[%clk 00:00:13]} {[%emt 00:00:03]} 40. Ne7
{[%clk 00:00:32]} {[%emt 00:00:05]} Bc3 {[%clk 00:00:13]} {[%emt 00:00:02]} 41.
b5 {[%clk 00:00:34]} a5 {[%clk 00:00:10]} {[%emt 00:00:05]} 42. Nf5 {[%clk
00:00:32]} {[%emt 00:00:04]} g6 {[%clk 00:00:10]} {[%emt 00:00:02]} 43. Nxh6
{[%clk 00:00:32]} {[%emt 00:00:02]} Kd4 {[%clk 00:00:11]} {[%emt 00:00:01]} 44.
Nf7 {[%clk 00:00:28]} {[%emt 00:00:05]} e3 {[%clk 00:00:09]} {[%emt 00:00:04]}
45. Kf3 {[%clk 00:00:18]} {[%emt 00:00:12]} Kd3 {[%clk 00:00:10]} 46. Nxd6
{[%clk 00:00:09]} {[%emt 00:00:11]} e2 {[%clk 00:00:11]} {[%emt 00:00:01]} 0-1

[Event "Campeonato de España Universitario Relámpago"]
[Site "Zaragoza, Spain"]
[Date "2024.04.24"]
[Round "1.4"]
[White "Quispe Arteaga, Gabriel"]
[Black "Llena Velarde, David"]
[Result "1-0"]
[TimeControl "3 min + 2 sg"]
[WhiteFideId "32059809"]
[BlackFideId "32092024"]
[WhiteElo "2304"]
[BlackElo "1941"]

1. Nf3 {[%clk 00:02:58]} {[%emt 00:00:07]} Nf6 {[%clk 00:03:03]} 2. c4 {[%clk
00:02:59]} e6 {[%clk 00:03:03]} {[%emt 00:00:01]} 3. Nc3 {[%clk 00:02:58]}
{[%emt 00:00:04]} d5 {[%clk 00:03:04]} 4. d4 {[%clk 00:02:59]} Be7 {[%clk
00:03:05]} {[%emt 00:00:02]} 5. cxd5 {[%clk 00:03:00]} {[%emt 00:00:01]} exd5
{[%clk 00:03:06]} {[%emt 00:00:03]} 6. Bg5 {[%clk 00:03:01]} c6 {[%clk
00:03:05]} {[%emt 00:00:02]} 7. e3 {[%clk 00:03:02]} Bf5 {[%clk 00:03:06]} 8.
Nh4 {[%clk 00:03:03]} {[%emt 00:00:03]} Bg4 {[%clk 00:03:03]} {[%emt 00:00:03]}
9. Be2 {[%clk 00:03:04]} {[%emt 00:00:01]} Bxe2 {[%clk 00:03:04]} {[%emt
00:00:02]} 10. Qxe2 {[%clk 00:03:04]} {[%emt 00:00:01]} h6 {[%clk 00:03:02]}
{[%emt 00:00:05]} 11. Bxf6 {[%clk 00:03:05]} Bxf6 {[%clk 00:03:02]} {[%emt
00:00:01]} 12. Nf3 {[%clk 00:03:06]} O-O {[%clk 00:03:02]} {[%emt 00:00:02]} 13.
O-O {[%clk 00:03:05]} {[%emt 00:00:03]} Re8 {[%clk 00:03:02]} {[%emt 00:00:03]}
14. b4 {[%clk 00:03:06]} {[%emt 00:00:01]} a6 {[%clk 00:03:02]} {[%emt
00:00:02]} 15. a4 {[%clk 00:03:07]} {[%emt 00:00:02]} Nd7 {[%clk 00:02:50]}
{[%emt 00:00:14]} 16. Rfd1 {[%clk 00:02:55]} {[%emt 00:00:13]} b5 {[%clk
00:02:43]} {[%emt 00:00:10]} 17. a5 {[%clk 00:02:56]} {[%emt 00:00:01]} Qe7
{[%clk 00:02:38]} {[%emt 00:00:06]} 18. Rab1 {[%clk 00:02:54]} {[%emt
00:00:05]} Qd6 {[%clk 00:02:17]} {[%emt 00:00:23]} 19. Ne1 {[%clk 00:02:47]}
{[%emt 00:00:07]} Nf8 {[%clk 00:02:15]} {[%emt 00:00:06]} 20. Qc2 {[%clk
00:02:40]} {[%emt 00:00:08]} Rac8 {[%clk 00:01:47]} {[%emt 00:00:31]} 21. Nd3
{[%clk 00:02:41]} {[%emt 00:00:01]} Ne6 {[%clk 00:01:47]} {[%emt 00:00:01]} 22.
Ne2 {[%clk 00:02:37]} {[%emt 00:00:06]} g6 {[%clk 00:01:41]} {[%emt 00:00:08]}
23. Nec1 {[%clk 00:02:29]} {[%emt 00:00:09]} Be7 {[%clk 00:01:21]} {[%emt
00:00:24]} 24. Nb3 {[%clk 00:02:28]} {[%emt 00:00:03]} Qb8 {[%clk 00:01:21]}
{[%emt 00:00:02]} 25. Rbc1 {[%clk 00:02:25]} {[%emt 00:00:05]} Bd6 {[%clk
00:01:21]} {[%emt 00:00:02]} 26. h3 {[%clk 00:02:25]} {[%emt 00:00:02]} Qc7
{[%clk 00:01:16]} {[%emt 00:00:07]} 27. Qd2 {[%clk 00:02:13]} {[%emt 00:00:14]}
Qe7 {[%clk 00:01:16]} {[%emt 00:00:02]} 28. Rc2 {[%clk 00:02:05]} {[%emt
00:00:10]} Rc7 {[%clk 00:01:15]} {[%emt 00:00:03]} 29. Rdc1 {[%clk 00:02:06]}
{[%emt 00:00:02]} Rec8 {[%clk 00:01:16]} 30. Ndc5 {[%clk 00:01:44]} {[%emt
00:00:25]} Bxc5 {[%clk 00:01:15]} {[%emt 00:00:03]} 31. Nxc5 {[%clk 00:01:44]}
{[%emt 00:00:02]} Nxc5 {[%clk 00:01:15]} {[%emt 00:00:02]} 32. Rxc5 {[%clk
00:01:44]} {[%emt 00:00:01]} Qd6 {[%clk 00:01:14]} {[%emt 00:00:03]} 33. Qc2
{[%clk 00:01:44]} Qe6 {[%clk 00:01:10]} {[%emt 00:00:06]} 34. Qd2 {[%clk
00:01:40]} {[%emt 00:00:08]} Qd6 {[%clk 00:01:11]} {[%emt 00:00:01]} 35. R5c2
{[%clk 00:01:41]} Re8 {[%clk 00:01:08]} {[%emt 00:00:04]} 36. Qc3 {[%clk
00:01:42]} {[%emt 00:00:01]} Re6 {[%clk 00:01:06]} {[%emt 00:00:05]} 37. Qc5
{[%clk 00:01:41]} {[%emt 00:00:03]} Qxc5 {[%clk 00:01:04]} {[%emt 00:00:04]} 38.
Rxc5 {[%clk 00:01:42]} {[%emt 00:00:01]} Rd6 {[%clk 00:01:05]} 39. Kf1 {[%clk
00:01:40]} {[%emt 00:00:04]} Kf8 {[%clk 00:01:06]} {[%emt 00:00:01]} 40. Ke2
{[%clk 00:01:41]} Ke7 {[%clk 00:01:07]} 41. Kd3 {[%clk 00:01:43]} Kd7 {[%clk
00:01:07]} {[%emt 00:00:04]} 42. f3 {[%clk 00:01:44]} f5 {[%clk 00:01:05]}
{[%emt 00:00:05]} 43. g4 {[%clk 00:01:46]} Re6 {[%clk 00:01:05]} {[%emt
00:00:02]} 44. gxf5 {[%clk 00:01:08]} {[%emt 00:00:40]} gxf5 {[%clk 00:01:06]}
45. Rg1 {[%clk 00:01:09]} Kd6 {[%clk 00:01:07]} {[%emt 00:00:02]} 46. f4 {[%clk
00:01:09]} {[%emt 00:00:01]} Rce7 {[%clk 00:01:08]} {[%emt 00:00:01]} 47. Rg3
{[%clk 00:01:11]} {[%emt 00:00:01]} h5 {[%clk 00:01:02]} {[%emt 00:00:08]} 48.
h4 {[%clk 00:01:10]} {[%emt 00:00:03]} Kd7 {[%clk 00:00:59]} {[%emt 00:00:05]}
49. Kd2 {[%clk 00:00:59]} {[%emt 00:00:13]} Kd6 {[%clk 00:00:51]} {[%emt
00:00:10]} 50. Rc3 {[%clk 00:01:00]} {[%emt 00:00:01]} Rh7 {[%clk 00:00:43]}
{[%emt 00:00:10]} 51. Rg5 {[%clk 00:01:01]} {[%emt 00:00:01]} Rf6 {[%clk
00:00:44]} {[%emt 00:00:01]} 52. Ke2 {[%clk 00:01:01]} {[%emt 00:00:01]} Ke7
{[%clk 00:00:44]} {[%emt 00:00:02]} 53. Rg8 {[%clk 00:01:00]} {[%emt 00:00:04]}
Rd6 {[%clk 00:00:36]} {[%emt 00:00:11]} 54. Ra8 {[%clk 00:00:52]} {[%emt
00:00:10]} Rg7 {[%clk 00:00:36]} 55. Ra7+ {[%clk 00:00:45]} {[%emt 00:00:09]}
Kf6 {[%clk 00:00:37]} {[%emt 00:00:01]} 56. Rxa6 {[%clk 00:00:46]} {[%emt
00:00:01]} Rg2+ {[%clk 00:00:33]} {[%emt 00:00:05]} 57. Kd3 {[%clk 00:00:47]}
Rb2 {[%clk 00:00:34]} {[%emt 00:00:02]} 58. Rcxc6 {[%clk 00:00:48]} {[%emt
00:00:01]} Rxc6 {[%clk 00:00:35]} {[%emt 00:00:01]} 59. Rxc6+ {[%clk 00:00:49]}
{[%emt 00:00:01]} Ke7 {[%clk 00:00:36]} 60. Kc3 {[%clk 00:00:50]} {[%emt
00:00:01]} Rb1 {[%clk 00:00:36]} {[%emt 00:00:03]} 61. Rc5 {[%clk 00:00:49]}
{[%emt 00:00:03]} Rc1+ {[%clk 00:00:37]} 62. Kd3 {[%clk 00:00:48]} {[%emt
00:00:03]} Rc4 {[%clk 00:00:36]} {[%emt 00:00:02]} 63. Rxb5 {[%clk 00:00:49]}
{[%emt 00:00:02]} 1-0

[Event "Campeonato de España Universitario Relámpago"]
[Site "Zaragoza, Spain"]
[Date "2024.04.24"]
[Round "1.5"]
[White "Perez Garcia, Jimena"]
[Black "Quintin Navarro, Alberto"]
[Result "0-1"]
[TimeControl "3 min + 2 sg"]
[WhiteFideId "24517127"]
[BlackFideId "2292688"]
[WhiteElo "1936"]
[BlackElo "2289"]

1. d4 {[%clk 00:03:02]} Nf6 {[%clk 00:03:03]} 2. c4 {[%clk 00:03:03]} {[%emt
00:00:02]} g6 {[%clk 00:03:04]} {[%emt 00:00:01]} 3. Nc3 {[%clk 00:03:03]}
{[%emt 00:00:02]} Bg7 {[%clk 00:03:05]} 4. e4 {[%clk 00:03:03]} {[%emt
00:00:02]} d6 {[%clk 00:03:06]} 5. Be2 {[%clk 00:03:04]} {[%emt 00:00:04]} O-O
{[%clk 00:02:59]} {[%emt 00:00:08]} 6. Be3 {[%clk 00:03:04]} {[%emt 00:00:02]}
Nc6 {[%clk 00:02:53]} {[%emt 00:00:08]} 7. d5 {[%clk 00:03:04]} {[%emt
00:00:02]} Nb4 {[%clk 00:02:50]} {[%emt 00:00:04]} 8. a3 {[%clk 00:03:01]}
{[%emt 00:00:05]} Na6 {[%clk 00:02:51]} 9. Qc2 {[%clk 00:02:48]} {[%emt
00:00:15]} e6 {[%clk 00:02:49]} {[%emt 00:00:04]} 10. Nf3 {[%clk 00:02:45]}
{[%emt 00:00:05]} exd5 {[%clk 00:02:49]} {[%emt 00:00:02]} 11. cxd5 {[%clk
00:02:46]} {[%emt 00:00:02]} Re8 {[%clk 00:02:46]} {[%emt 00:00:05]} 12. Nd2
{[%clk 00:02:37]} {[%emt 00:00:11]} Ng4 {[%clk 00:02:30]} {[%emt 00:00:18]} 13.
Bxg4 {[%clk 00:02:25]} {[%emt 00:00:14]} Bxg4 {[%clk 00:02:30]} {[%emt
00:00:02]} 14. O-O {[%clk 00:02:21]} {[%emt 00:00:06]} Bd7 {[%clk 00:02:14]}
{[%emt 00:00:18]} 15. Rac1 {[%clk 00:01:59]} {[%emt 00:00:24]} c5 {[%clk
00:01:43]} {[%emt 00:00:33]} 16. Nc4 {[%clk 00:01:19]} {[%emt 00:00:42]} Bf8
{[%clk 00:01:10]} {[%emt 00:00:34]} 17. Bf4 {[%clk 00:01:18]} {[%emt 00:00:04]}
Qf6 {[%clk 00:01:07]} {[%emt 00:00:05]} 18. Bg3 {[%clk 00:00:58]} {[%emt
00:00:21]} b5 {[%clk 00:01:06]} {[%emt 00:00:04]} 19. Na5 {[%clk 00:00:36]}
{[%emt 00:00:25]} b4 {[%clk 00:01:01]} {[%emt 00:00:07]} 20. axb4 {[%clk
00:00:31]} {[%emt 00:00:07]} Nxb4 {[%clk 00:00:53]} {[%emt 00:00:10]} 21. Qd2
{[%clk 00:00:30]} {[%emt 00:00:04]} Rab8 {[%clk 00:00:37]} {[%emt 00:00:17]} 22.
Nc4 {[%clk 00:00:29]} {[%emt 00:00:03]} h5 {[%clk 00:00:29]} {[%emt 00:00:10]}
23. h3 {[%clk 00:00:30]} {[%emt 00:00:02]} Kh7 {[%clk 00:00:14]} {[%emt
00:00:17]} 24. Ra1 {[%clk 00:00:31]} {[%emt 00:00:01]} a6 {[%clk 00:00:11]}
{[%emt 00:00:05]} 25. Rfe1 {[%clk 00:00:32]} {[%emt 00:00:01]} Bh6 {[%clk
00:00:10]} {[%emt 00:00:03]} 26. Qd1 {[%clk 00:00:26]} {[%emt 00:00:08]} Bf8
{[%clk 00:00:09]} {[%emt 00:00:03]} 27. Qd2 {[%clk 00:00:21]} {[%emt 00:00:07]}
Bb5 {[%clk 00:00:09]} {[%emt 00:00:02]} 28. Nxb5 {[%clk 00:00:21]} {[%emt
00:00:02]} axb5 {[%clk 00:00:10]} {[%emt 00:00:01]} 29. Na5 {[%clk 00:00:21]}
{[%emt 00:00:03]} Bh6 {[%clk 00:00:07]} {[%emt 00:00:04]} 30. Qd1 {[%clk
00:00:21]} {[%emt 00:00:02]} Ra8 {[%clk 00:00:06]} {[%emt 00:00:02]} 31. Nb7
{[%clk 00:00:19]} {[%emt 00:00:05]} Rxa1 {[%clk 00:00:07]} {[%emt 00:00:02]} 32.
Qxa1 {[%clk 00:00:20]} {[%emt 00:00:01]} Nc2 {[%clk 00:00:07]} {[%emt
00:00:01]} 33. Qb1 {[%clk 00:00:22]} Nxe1 {[%clk 00:00:07]} {[%emt 00:00:01]}
34. Qxe1 {[%clk 00:00:23]} Bf8 {[%clk 00:00:05]} {[%emt 00:00:04]} 35. Qa5
{[%clk 00:00:24]} {[%emt 00:00:01]} Qxb2 {[%clk 00:00:04]} {[%emt 00:00:03]} 36.
Nxd6 {[%clk 00:00:20]} {[%emt 00:00:04]} Bxd6 {[%clk 00:00:04]} {[%emt
00:00:02]} 37. Bxd6 {[%clk 00:00:20]} {[%emt 00:00:02]} Qb1+ {[%clk 00:00:06]}
{[%emt 00:00:01]} 38. Kh2 {[%clk 00:00:20]} {[%emt 00:00:02]} Qxe4 {[%clk
00:00:07]} 39. Qxb5 {[%clk 00:00:16]} {[%emt 00:00:07]} Rd8 {[%clk 00:00:06]}
{[%emt 00:00:03]} 40. Qxc5 {[%clk 00:00:12]} {[%emt 00:00:05]} Qf5 {[%clk
00:00:07]} {[%emt 00:00:01]} 41. Qc7 {[%clk 00:00:09]} {[%emt 00:00:05]} Qd7
{[%clk 00:00:08]} {[%emt 00:00:01]} 42. Qxd7 {[%clk 00:00:08]} {[%emt
00:00:03]} Rxd7 {[%clk 00:00:09]} 43. Bf4 {[%clk 00:00:09]} {[%emt 00:00:01]}
Rxd5 {[%clk 00:00:10]} {[%emt 00:00:01]} 44. Kg3 {[%clk 00:00:09]} {[%emt
00:00:02]} g5 {[%clk 00:00:11]} 45. Be3 {[%clk 00:00:09]} {[%emt 00:00:01]} Kg6
{[%clk 00:00:09]} {[%emt 00:00:04]} 46. h4 {[%clk 00:00:09]} {[%emt 00:00:03]}
f6 {[%clk 00:00:11]} 47. hxg5 {[%clk 00:00:08]} {[%emt 00:00:03]} fxg5 {[%clk
00:00:12]} 48. Kf3 {[%clk 00:00:08]} {[%emt 00:00:03]} Rb5 {[%clk 00:00:12]}
{[%emt 00:00:02]} 49. Kg3 {[%clk 00:00:08]} {[%emt 00:00:01]} Rb3 {[%clk
00:00:13]} 50. Kh2 {[%clk 00:00:08]} {[%emt 00:00:03]} Kf5 {[%clk 00:00:14]}
{[%emt 00:00:01]} 51. Kg3 {[%clk 00:00:07]} {[%emt 00:00:03]} Ke4 {[%clk
00:00:11]} {[%emt 00:00:06]} 52. Kh2 {[%clk 00:00:07]} {[%emt 00:00:02]} Rxe3
{[%clk 00:00:10]} {[%emt 00:00:03]} 53. fxe3 {[%clk 00:00:08]} {[%emt
00:00:01]} Kxe3 {[%clk 00:00:11]} 54. Kg3 {[%clk 00:00:08]} Ke4 {[%clk
00:00:12]} {[%emt 00:00:01]} 55. Kh3 {[%clk 00:00:09]} {[%emt 00:00:02]} Kf4
{[%clk 00:00:12]} {[%emt 00:00:02]} 56. Kh2 {[%clk 00:00:09]} {[%emt 00:00:02]}
g4 {[%clk 00:00:12]} {[%emt 00:00:02]} 57. Kg1 {[%clk 00:00:09]} {[%emt
00:00:01]} Ke3 {[%clk 00:00:11]} {[%emt 00:00:03]} 58. Kh2 {[%clk 00:00:10]}
{[%emt 00:00:01]} Kf2 {[%clk 00:00:12]} {[%emt 00:00:01]} 59. Kh1 {[%clk
00:00:11]} h4 {[%clk 00:00:13]} {[%emt 00:00:02]} 60. Kh2 {[%clk 00:00:13]} h3
{[%clk 00:00:09]} {[%emt 00:00:07]} 61. gxh3 {[%clk 00:00:03]} {[%emt
00:00:12]} g3 {[%clk 00:00:10]} 62. Kh1 {[%clk 00:00:04]} {[%emt 00:00:02]} g2+
{[%clk 00:00:11]} {[%emt 00:00:01]} 0-1

[ePGN "0.1;DGT LiveChess/2.2.6"]